[Event "AI Cup Div-2 2023"]
[Site "Online"]
[Date "2023.09.26"]
[Round "51.1"]
[White "Gledura, Benjamin"]
[Black "Eljanov, Pavel"]
[Result "1-0"]
[ECO "D35"]
[WhiteElo "2633"]
[BlackElo "2695"]
[Annotator "ChessBase"]
[PlyCount "101"]
[EventDate "2023.09.18"]
[EventType "k.o."]
[EventCountry "NET"]
[SourceTitle "playchess.com"]
[Source "ChessBase"]
[SourceQuality "1"]
[TimeControl "900+3"]

1. d4 {[%emt 0:00:07]} Nf6 {[%emt 0:00:07]} 2. c4 {[%emt 0:00:02]} e6 {[%emt 0:00:02]} 3. Nc3 {[%emt 0:00:02]} d5 {[%emt 0:00:00]} 4. cxd5 {[%emt 0:00:03]} exd5 {[%emt 0:00:01]} 5. Bg5 {[%emt 0:00:01]} c6 {[%emt 0:00:02]} 6. e3 {[%emt 0:00:02]} h6 {[%emt 0:00:01]} 7. Bh4 {[%emt 0:00:01]} Be7 {[%emt 0:00:02]} 8. Bd3 {[%emt 0:00:06]} O-O {[%emt 0:00:04]} 9. Nge2 {[%emt 0:00:05]} Re8 {[%emt 0:00:08]} 10. O-O {[%emt 0:00:40]} Nbd7 {[%emt 0:00:01]} 11. a4 {[%emt 0:00:05]} Nh5 {[%emt 0:00:06]} 12. Bxe7 {[%emt 0:00:04]} Qxe7 {[%emt 0:00:01]} 13. a5 {[%emt 0:00:02]} Ndf6 {[%emt 0:00:05]} 14. Qd2 {[%emt 0:01:05]} g6 {[%emt 0:00:11]} 15. Rac1 {[%emt 0:00:26]} Ng7 {[%emt 0:00:27]} 16. Na4 {[%emt 0:00:30]} a6 {[%emt 0:01:03]} 17. Rfe1 {[%emt 0:00:29]} Bf5 {[%emt 0:00:13]} 18. Nc5 {[%emt 0:01:29]} h5 {[%emt 0:00:32]} 19. Nf4 {[%emt 0:00:29]} Rad8 {[%emt 0:03:44]} 20. Bf1 {[%emt 0:02:56]} Bc8 {[%emt 0:01:15]} 21. Nfd3 {[%emt 0:00:03]} Nf5 {[%emt 0:00:12]} 22. b3 {[%emt 0:00:25]} Ng4 {[%emt 0:01:41]} 23. h3 {[%emt 0:00:13]} Nf6 {[%emt 0:00:15]} 24. Ne5 {[%emt 0:00:09]} Kg7 {[%emt 0:00:15]} 25. Qc3 {[%emt 0:00:09]} Qc7 {[%emt 0:01:08]} 26. b4 {[%emt 0:00:24]} Kg8 {[%emt 0:01:27]} 27. Qb2 {[%emt 0:00:32]} Nd6 {[%emt 0:00:07]} 28. f3 {[%emt 0:00:45]} Nd7 {[%emt 0:01:33]} 29. Nexd7 {[%emt 0:00:06]} Bxd7 {[%emt 0:00:02]} 30. e4 {[%emt 0:00:05]} dxe4 {[%emt 0:00:02]} 31. fxe4 {[%emt 0:00:02]} Bc8 {[%emt 0:00:05]} 32. e5 {[%emt 0:02:02]} Nf5 {[%emt 0:00:03]} 33. Ne4 {[%emt 0:00:01]} Re6 {[%emt 0:00:52]} 34. Nf6+ {[%emt 0:00:02]} Rxf6 {[%emt 0:00:05]} 35. exf6 {[%emt 0:00:02]} Be6 {[%emt 0:00:32]} 36. d5 {[%emt 0:00:15]} Bxd5 {[%emt 0:00:05]} 37. Qe5 {[%emt 0:00:02]} Qxe5 {[%emt 0:00:17]} 38. Rxe5 {[%emt 0:00:02]} Rd6 {[%emt 0:00:04]} 39. Re8+ {[%emt 0:00:57]} Kh7 {[%emt 0:00:01]} 40. Rb8 {[%emt 0:00:01]} Ne3 {[%emt 0:00:05]} 41. Rxb7 {[%emt 0:00:31]} Nxf1 {[%emt 0:00:02]} 42. Rxf1 {[%emt 0:00:05]} g5 {[%emt 0:00:01]} 43. Rb6 {[%emt 0:00:07]} Bc4 {[%emt 0:00:06]} 44. Rf2 {[%emt 0:00:19]} Kg6 {[%emt 0:00:02]} 45. Rb8 {[%emt 0:00:05]} Kh7 {[%emt 0:00:07]} 46. Rf5 {[%emt 0:00:06]} Kg6 {[%emt 0:00:03]} 47. g4 {[%emt 0:00:05]} hxg4 {[%emt 0:00:01]} 48. hxg4 {[%emt 0:00:00]} Be6 {[%emt 0:00:05]} 49. Rg8+ {[%emt 0:00:03]} Kh6 {[%emt 0:00:01]} 50. Rfxg5 {[%emt 0:00:01]} Bd5 {[%emt 0:00:06]} 51. Rh5# {[%emt 0:00:02]} 1-0

[Event "AI Cup Div-2 2023"]
[Site "Online"]
[Date "2023.09.26"]
[Round "51.1"]
[White "Kuzubov, Yuriy"]
[Black "Hakobyan, Aram"]
[Result "1-0"]
[ECO "E36"]
[WhiteElo "2625"]
[BlackElo "2617"]
[Annotator "ChessBase"]
[PlyCount "105"]
[EventDate "2023.09.18"]
[EventType "k.o."]
[EventCountry "NET"]
[SourceTitle "playchess.com"]
[Source "ChessBase"]
[SourceQuality "1"]
[TimeControl "900+3"]

1. d4 {[%emt 0:00:05]} Nf6 {[%emt 0:00:06]} 2. c4 {[%emt 0:00:01]} e6 {[%emt 0:00:04]} 3. Nc3 {[%emt 0:00:01]} Bb4 {[%emt 0:00:24]} 4. Qc2 {[%emt 0:00:02]} d5 {[%emt 0:00:06]} 5. a3 {[%emt 0:00:11]} Bxc3+ {[%emt 0:00:03]} 6. Qxc3 {[%emt 0:00:00]} O-O {[%emt 0:00:09]} 7. Nf3 {[%emt 0:00:16]} dxc4 {[%emt 0:00:26]} 8. Qxc4 {[%emt 0:00:02]} b6 {[%emt 0:00:07]} 9. Bg5 {[%emt 0:00:10]} Ba6 {[%emt 0:00:17]} 10. Qc1 {[%emt 0:00:02]} Bb7 {[%emt 0:01:49]} 11. Qf4 {[%emt 0:00:37]} Nbd7 {[%emt 0:00:18]} 12. Ne5 {[%emt 0:01:05]} h6 {[%emt 0:00:19]} 13. h4 {[%emt 0:00:12]} Nxe5 {[%emt 0:01:55]} 14. Bxf6 {[%emt 0:03:40]} Qxf6 {[%emt 0:01:15]} 15. Qxe5 {[%emt 0:00:06]} Qxe5 {[%emt 0:00:05]} 16. dxe5 {[%emt 0:00:00]} Rfd8 {[%emt 0:00:01]} 17. Rh3 {[%emt 0:00:11]} Rd5 {[%emt 0:00:20]} 18. Re3 {[%emt 0:00:35]} Rad8 {[%emt 0:00:12]} 19. f4 {[%emt 0:00:13]} c5 {[%emt 0:00:38]} 20. Rc1 {[%emt 0:00:47]} Rd2 {[%emt 0:00:55]} 21. b4 {[%emt 0:00:08]} cxb4 {[%emt 0:00:25]} 22. axb4 {[%emt 0:00:10]} R2d4 {[%emt 0:00:27]} 23. Rc7 {[%emt 0:00:55]} Be4 {[%emt 0:02:18]} 24. Ra3 {[%emt 0:01:19]} Bg6 {[%emt 0:00:09]} 25. g3 {[%emt 0:00:40]} Rxb4 {[%emt 0:00:02]} 26. Raxa7 {[%emt 0:00:04]} b5 {[%emt 0:00:38]} 27. h5 {[%emt 0:01:52]} Bxh5 {[%emt 0:00:13]} 28. g4 {[%emt 0:00:06]} Bg6 {[%emt 0:01:01]} 29. f5 {[%emt 0:00:06]} exf5 {[%emt 0:00:03]} 30. gxf5 {[%emt 0:00:05]} Bxf5 {[%emt 0:01:03]} 31. Rxf7 {[%emt 0:00:03]} Rb1+ {[%emt 0:00:11]} 32. Kf2 {[%emt 0:00:02]} Rf8 {[%emt 0:00:05]} 33. Rxg7+ {[%emt 0:00:05]} Kh8 {[%emt 0:00:01]} 34. Rgf7 {[%emt 0:00:03]} Rxf7 {[%emt 0:00:03]} 35. Rxf7 {[%emt 0:00:01]} Bg6 {[%emt 0:00:21]} 36. Rb7 {[%emt 0:00:09]} Rb4 {[%emt 0:00:01]} 37. Bg2 {[%emt 0:00:47]} Rf4+ {[%emt 0:00:08]} 38. Ke3 {[%emt 0:00:03]} Rf8 {[%emt 0:00:13]} 39. Bc6 {[%emt 0:00:16]} Bf5 {[%emt 0:00:05]} 40. Bxb5 {[%emt 0:00:08]} h5 {[%emt 0:00:01]} 41. Bc4 {[%emt 0:00:08]} h4 {[%emt 0:00:02]} 42. e6 {[%emt 0:00:06]} Re8 {[%emt 0:00:03]} 43. e7 {[%emt 0:00:04]} h3 {[%emt 0:00:05]} 44. Kf4 {[%emt 0:00:30]} h2 {[%emt 0:00:02]} 45. Bd5 {[%emt 0:00:07]} Be6 {[%emt 0:00:05]} 46. Bc6 {[%emt 0:00:08]} Kg7 {[%emt 0:00:01]} 47. Ke5 {[%emt 0:00:05]} Bc8 {[%emt 0:00:04]} 48. Ra7 {[%emt 0:00:04]} Kf7 {[%emt 0:00:04]} 49. Kd6 {[%emt 0:00:04]} Kg7 {[%emt 0:00:04]} 50. Ra1 {[%emt 0:00:04]} Rh8 {[%emt 0:00:02]} 51. e8=Q {[%emt 0:00:03]} Rxe8 {[%emt 0:00:01]} 52. Bxe8 {[%emt 0:00:01]} Bb7 {[%emt 0:00:01]} 53. Bc6 {[%emt 0:00:06]} 1-0

[Event "AI Cup Div-2 2023"]
[Site "Online"]
[Date "2023.09.26"]
[Round "51.1"]
[White "Antipov, Mikhail Al."]
[Black "Saric, Ivan"]
[Result "1/2-1/2"]
[ECO "B13"]
[WhiteElo "2600"]
[BlackElo "2647"]
[Annotator "ChessBase"]
[PlyCount "75"]
[EventDate "2023.09.18"]
[EventType "k.o."]
[EventCountry "NET"]
[SourceTitle "playchess.com"]
[Source "ChessBase"]
[SourceQuality "1"]
[TimeControl "900+3"]

1. e4 {[%emt 0:00:04]} c6 {[%emt 0:00:10]} 2. d4 {[%emt 0:00:01]} d5 {[%emt 0:00:02]} 3. exd5 {[%emt 0:00:08]} cxd5 {[%emt 0:00:00]} 4. Bd3 {[%emt 0:00:01]} Nc6 {[%emt 0:00:01]} 5. c3 {[%emt 0:00:01]} Nf6 {[%emt 0:00:01]} 6. h3 {[%emt 0:00:01]} e5 {[%emt 0:00:05]} 7. dxe5 {[%emt 0:00:01]} Nxe5 {[%emt 0:00:00]} 8. Qe2 {[%emt 0:00:01]} Ne4 {[%emt 0:00:30]} 9. Bb5+ {[%emt 0:00:05]} Bd7 {[%emt 0:00:02]} 10. Nf3 {[%emt 0:00:01]} Bxb5 {[%emt 0:00:04]} 11. Qxb5+ {[%emt 0:00:02]} Qd7 {[%emt 0:00:01]} 12. Qxd7+ {[%emt 0:00:16]} Nxd7 {[%emt 0:00:00]} 13. Be3 {[%emt 0:02:52]} Bc5 {[%emt 0:00:07]} 14. Bxc5 {[%emt 0:00:06]} Ndxc5 {[%emt 0:00:00]} 15. Ke2 {[%emt 0:00:01]} O-O-O {[%emt 0:00:14]} 16. Rd1 {[%emt 0:00:01]} Rhe8 {[%emt 0:00:00]} 17. Kf1 {[%emt 0:00:01]} Na4 {[%emt 0:02:23]} 18. b3 {[%emt 0:00:19]} Nac5 {[%emt 0:00:01]} 19. Na3 {[%emt 0:01:19]} Kb8 {[%emt 0:00:23]} 20. Rac1 {[%emt 0:00:10]} a6 {[%emt 0:00:00]} 21. Nd4 {[%emt 0:00:22]} h5 {[%emt 0:00:20]} 22. f3 {[%emt 0:00:31]} Ng3+ {[%emt 0:00:14]} 23. Kf2 {[%emt 0:00:02]} h4 {[%emt 0:00:01]} 24. Nac2 {[%emt 0:00:25]} Re5 {[%emt 0:01:19]} 25. Rd2 {[%emt 0:05:10]} Rde8 {[%emt 0:00:11]} 26. Re1 {[%emt 0:00:40]} Rxe1 {[%emt 0:00:39]} 27. Nxe1 {[%emt 0:00:00]} Nh1+ {[%emt 0:00:35]} 28. Kf1 {[%emt 0:00:02]} Ng3+ {[%emt 0:00:01]} 29. Kf2 {[%emt 0:00:00]} f5 {[%emt 0:01:20]} 30. Ne2 {[%emt 0:01:01]} Kc7 {[%emt 0:02:12]} 31. Nf4 {[%emt 0:00:29]} Kc6 {[%emt 0:00:21]} 32. Nc2 {[%emt 0:00:37]} g5 {[%emt 0:02:07]} 33. Nb4+ {[%emt 0:00:04]} Kb5 {[%emt 0:00:12]} 34. Nfxd5 {[%emt 0:01:08]} Nh1+ {[%emt 0:00:20]} 35. Kf1 {[%emt 0:00:01]} Ng3+ {[%emt 0:00:01]} 36. Kf2 {[%emt 0:00:00]} Nh1+ {[%emt 0:00:01]} 37. Kf1 {[%emt 0:00:02]} Ng3+ {[%emt 0:00:01]} 38. Kf2 {[%emt 0:00:05]} 1/2-1/2

[Event "AI Cup Div-2 2023"]
[Site "Online"]
[Date "2023.09.26"]
[Round "51.2"]
[White "Eljanov, Pavel"]
[Black "Gledura, Benjamin"]
[Result "1-0"]
[ECO "A06"]
[WhiteElo "2695"]
[BlackElo "2633"]
[Annotator "TA"]
[PlyCount "149"]
[EventDate "2023.09.18"]
[EventType "k.o."]
[EventCountry "NET"]
[SourceTitle "playchess.com"]
[Source "ChessBase"]
[SourceQuality "1"]
[TimeControl "900+3"]

{[%evp 9,149,12,14,8,15,15,15,15,13,7,12,10,11,6,7,8,8,7,7,8,7,2,5,0,12,6,6,4,3,9,13,13,23,23,35,29,25,0,11,13,33,0,0,0,0,0,0,0,35,0,53,63,66,78,113,113,183,172,185,173,162,160,263,255,245,266,320,265,319,261,379,13,61,20,62,63,111,102,130,83,130,109,91,97,287,280,258,270,265,270,379,319,287,179,152,137,142,63,63,56,365,373,1150,742,1377,735,705,664,705,660,550,507,1018,1016,827,816,1119,1119,1093,1086,1043,1028,1028,1028,1488,1438,1483,1457,1417,1385,1323,0,1240,0,1177,1159,1066,1016,952,872,616,367]} 1. Nf3 {[%emt 0:00:04]} d5 {[%emt 0:00:06]} 2. e3 {[%emt 0:00:03]} Nf6 {[%emt 0:00:10]} 3. b3 {[%emt 0:00:11]} Bf5 {[%emt 0:00:23]} 4. Be2 {[%emt 0:00:05]} h6 {[%emt 0:00:05]} 5. Ba3 {[%emt 0:00:56]} Nbd7 {[%emt 0:00:39]} 6. c4 {[%emt 0:00:37] A06: Réti Opening: 1 Nf3 d5.} e6 {[%emt 0:00:16]} 7. Bxf8 {[%emt 0:00:02]} Nxf8 {[%emt 0:00:02]} 8. Nc3 {[%emt 0:01:27] The position is equal.} c6 {[%emt 0:00:37]} 9. O-O {[%emt 0:00:39]} N8d7 {[%emt 0:00:03]} 10. d4 {[%emt 0:00:02]} O-O {[%emt 0:00:30]} 11. Qc1 {[%emt 0:00:19]} Qe7 {[%emt 0:00:14]} 12. Qb2 {[%emt 0:00:15]} a5 {[%emt 0:00:31]} 13. a3 {[%emt 0:01:40]} Bg4 {[%emt 0:02:00]} 14. h3 {[%emt 0:00:29] [#]} Bh5 $146 {[%emt 0:00:03]} ({Predecessor:} 14... Bxf3 15. Bxf3 Rfd8 16. Rfd1 Nb6 17. Be2 Nc8 18. c5 b5 19. b4 a4 20. f4 Ne4 21. Nxe4 dxe4 {0-1 So,W (2778)-Giri,A (2777) Meltwater Tour Final rapid 2021 (5.1)}) 15. Rac1 {[%emt 0:00:20]} Ne4 {[%emt 0:00:30]} 16. Rfe1 {[%emt 0:00:28]} Nxc3 {[%emt 0:00:58]} 17. Rxc3 {[%emt 0:00:02]} Nf6 {[%emt 0:00:00]} 18. Ne5 {[%emt 0:00:31]} Bxe2 {[%emt 0:00:03]} 19. Rxe2 {[%emt 0:00:01]} Nd7 {[%emt 0:00:14]} 20. Nd3 {[%emt 0:00:15]} Rfd8 {[%emt 0:00:29]} 21. Rc1 {[%emt 0:01:07]} Rac8 {[%emt 0:00:21]} 22. c5 {[%emt 0:01:54]} Re8 {[%emt 0:00:06]} 23. f4 {[%emt 0:00:51]} Rb8 {[%emt 0:00:33]} 24. Qc3 {[%emt 0:00:29]} b6 {[%emt 0:01:06]} 25. b4 {[%emt 0:00:30]} (25. cxb6 {is interesting.} Qxa3 26. Nc5 Nxb6 27. Ra1) 25... axb4 {[%emt 0:00:15]} 26. axb4 {[%emt 0:00:25]} bxc5 {[%emt 0:00:09]} 27. bxc5 {[%emt 0:00:01]} Nf6 {[%emt 0:00:10]} 28. Ne5 {[%emt 0:00:14]} Qc7 {[%emt 0:00:07]} 29. Ra1 {[%emt 0:00:09]} Ra8 {[%emt 0:02:51]} (29... Ne4 $11 30. Qd3 f6) 30. Rea2 $14 {[%emt 0:00:07]} Qb7 {[%emt 0:01:02] And now ...Rxa2 would win.} 31. Qc2 {[%emt 0:00:54] White is more active.} Rxa2 {[%emt 0:01:32]} 32. Qxa2 {[%emt 0:00:09] Hoping for Qa7.} Qb4 {[%emt 0:00:09]} (32... Nd7 $16) 33. Nxc6 $18 {[%emt 0:00:09]} Qc3 {[%emt 0:00:02]} 34. Qa3 $36 {[%emt 0:00:04][%mdl 2048] White is really pushing.} Qd2 {[%emt 0:00:01]} 35. Qc1 {[%emt 0:00:06]} Qd3 {[%emt 0:00:04]} (35... Qe2 $16 36. Qe1 Qc2) 36. Ne5 {[%emt 0:00:02]} Qe2 {[%emt 0:00:03]} 37. Qe1 {[%emt 0:00:09]} Qb2 {[%emt 0:00:01]} 38. Rb1 {[%emt 0:00:04]} Qa2 {[%emt 0:00:02]} 39. c6 {[%emt 0:00:03] Black must now prevent Rb7.} ({But not} 39. Rb7 Rf8 40. c6 Qc2) 39... Rc8 {[%emt 0:00:05]} (39... Qc2 $142 40. Qb4 Ne4) 40. Qc1 $2 {[%emt 0:00:10]} ({White should try} 40. Rb7 $18) 40... Ne4 $11 {[%emt 0:00:07][%cal Oe4c3]} 41. Rb2 {[%emt 0:00:21][%cal Bb1b2,Bb2c2,Bc2c1,Bc1a1,Ba1a7,Ba7d7][%mdl 32]} (41. Kh2 {feels hotter.} Qf2 42. Rb2 Qg3+ 43. Kg1) 41... Qa3 {[%emt 0:00:09]} 42. Rc2 {[%emt 0:00:01]} (42. Kh2 $5 {[%cal Re5f7]} Nd6 43. Rc2 Qxc1 44. Rxc1 $14) 42... Qxc1+ {[%emt 0:00:01]} (42... Qb4 $14) 43. Rxc1 $14 {[%emt 0:00:02][%mdl 4096] Endgame KRN-KRN} f6 {[%emt 0:00:00]} 44. Nd3 {[%emt 0:00:06]} (44. Nd7 $142 {Threatens to win with c7.} Rc7 45. Nb6) 44... Kf7 {[%emt 0:00:04]} (44... Nd6 $142) 45. Nb4 {[%emt 0:00:04]} Nd6 {[%emt 0:00:05]} 46. Ra1 {[%emt 0:00:07]} Rb8 $2 {[%emt 0:00:02] [#]} (46... Nb5 $16 {was worth a try.}) 47. Ra7+ $1 $18 {[%emt 0:00:13]} Kg6 {[%emt 0:00:01]} 48. Rd7 {[%emt 0:00:10]} Rxb4 {[%emt 0:00:02]} 49. Rxd6 {[%emt 0:00:02] KR-KR} Kf5 {[%emt 0:00:04]} (49... Rc4 $142 50. Rxe6 Kf5) 50. Kf2 {[%emt 0:00:01]} h5 {[%emt 0:00:05]} 51. Rd7 {[%emt 0:00:10]} g5 {[%emt 0:00:09]} 52. fxg5 {[%emt 0:00:01]} fxg5 {[%emt 0:00:00]} 53. c7 {[%emt 0:00:02]} ({Much less strong is} 53. Rf7+ $6 Ke4 $14) ({Better is} 53. Ke2 $16) 53... Rc4 $14 {[%emt 0:00:01]} 54. Ke2 {[%emt 0:00:07]} g4 $2 {[%emt 0:00:10][%mdl 8192] White now steadily converts the win.} (54... Ke4 $14) 55. h4 $18 {[%emt 0:00:04]} e5 $2 {[%emt 0:00:08]} (55... Rc2+ 56. Kd3 Rc6) 56. Kd3 {[%emt 0:00:05] aiming for e4+.} Ke6 {[%emt 0:00:03]} 57. Rh7 {[%emt 0:00:02]} e4+ {[%emt 0:00:05]} 58. Ke2 {[%emt 0:00:01]} Rc2+ {[%emt 0:00:03]} 59. Kf1 {[%emt 0:00:02]} g3 {[%emt 0:00:01] [#]} 60. Rg7 $1 {[%emt 0:00:05]} ({And not} 60. Rxh5 Rxc7 61. Rg5 Rc1+ 62. Ke2 Rc2+ 63. Kf1 Rc1+ 64. Ke2 Rc2+ 65. Kf1 Rc1+ $11) 60... Kf6 {[%emt 0:00:03]} (60... Rc3 $142 61. Rxg3 Rc1+ 62. Kf2 Rc2+ 63. Ke1 Rc1+ 64. Ke2 Rxc7 65. Rg6+ Kf7) 61. Rxg3 {[%emt 0:00:02]} Rxc7 {[%emt 0:00:01]} 62. Rg5 {[%emt 0:00:01]} Rc3 {[%emt 0:00:02]} 63. Kf2 {[%emt 0:00:01]} Rc2+ {[%emt 0:00:01]} 64. Kg3 {[%emt 0:00:01]} Re2 {[%emt 0:00:01]} 65. Rxd5 {[%emt 0:00:04]} Rxe3+ {[%emt 0:00:02]} 66. Kf4 {[%emt 0:00:00]} Re2 {[%emt 0:00:01]} 67. g3 {[%emt 0:00:01]} Kg6 {[%emt 0:00:06]} 68. Rg5+ {[%emt 0:00:01]} Kh6 {[%emt 0:00:02]} 69. Re5 {[%emt 0:00:01]} Kg6 {[%emt 0:00:06]} 70. Rg5+ {[%emt 0:00:04]} Kh6 {[%emt 0:00:05]} 71. Re5 {[%emt 0:00:01]} Kg6 {[%emt 0:00:01]} 72. Rxe4 {[%emt 0:00:00] White is clearly winning.} Rf2+ {[%emt 0:00:01]} 73. Ke3 {[%emt 0:00:02]} Rf1 {[%emt 0:00:01]} 74. Re5 {[%emt 0:00:02]} Rg1 {[%emt 0:00:02]} 75. Rg5+ {[%emt 0:00:01] Weighted Error Value: White=0.23 (precise) /Black=0.35} 1-0

[Event "AI Cup Div-2 2023"]
[Site "Online"]
[Date "2023.09.26"]
[Round "51.2"]
[White "Saric, Ivan"]
[Black "Antipov, Mikhail Al."]
[Result "1-0"]
[ECO "C65"]
[WhiteElo "2647"]
[BlackElo "2600"]
[Annotator "ChessBase"]
[PlyCount "49"]
[EventDate "2023.09.18"]
[EventType "k.o."]
[EventCountry "NET"]
[SourceTitle "playchess.com"]
[Source "ChessBase"]
[SourceQuality "1"]
[TimeControl "900+3"]

1. e4 {[%emt 0:00:03]} e5 {[%emt 0:00:07]} 2. Nf3 {[%emt 0:00:02]} Nc6 {[%emt 0:00:01]} 3. Bb5 {[%emt 0:00:03]} Nf6 {[%emt 0:00:01]} 4. d3 {[%emt 0:00:15]} Ne7 {[%emt 0:00:02]} 5. Nc3 {[%emt 0:00:03]} c6 {[%emt 0:00:00]} 6. Bc4 {[%emt 0:00:02]} d6 {[%emt 0:00:01]} 7. Bb3 {[%emt 0:00:21]} h6 {[%emt 0:00:13]} 8. d4 {[%emt 0:00:06]} Qc7 {[%emt 0:00:37]} 9. Be3 {[%emt 0:00:16]} Ng6 {[%emt 0:00:09]} 10. a4 {[%emt 0:01:47]} Be7 {[%emt 0:00:33]} 11. h3 {[%emt 0:00:13]} O-O {[%emt 0:00:19]} 12. Qd2 {[%emt 0:00:03]} exd4 {[%emt 0:03:08]} 13. Nxd4 {[%emt 0:00:16]} Re8 {[%emt 0:00:01]} 14. O-O-O {[%emt 0:00:39]} Bf8 {[%emt 0:01:14]} 15. f3 {[%emt 0:00:07]} a6 {[%emt 0:00:02]} 16. g4 {[%emt 0:00:14]} b5 {[%emt 0:01:23]} 17. g5 {[%emt 0:00:29]} hxg5 {[%emt 0:00:03]} 18. Bxg5 {[%emt 0:00:00]} b4 {[%emt 0:00:00]} 19. Nce2 {[%emt 0:01:39]} Nh7 {[%emt 0:01:21]} 20. Rhg1 {[%emt 0:01:31]} Bd7 {[%emt 0:02:42]} 21. Nf4 {[%emt 0:00:43]} Nxf4 {[%emt 0:01:09]} 22. Qxf4 {[%emt 0:00:12]} Be6 {[%emt 0:00:05]} 23. Bh6 {[%emt 0:00:51]} Bxb3 {[%emt 0:00:47]} 24. Bxg7 {[%emt 0:00:04]} Bxg7 {[%emt 0:00:25]} 25. Nf5 {[%emt 0:00:08]} 1-0

[Event "AI Cup Div-2 2023"]
[Site "Online"]
[Date "2023.09.26"]
[Round "51.2"]
[White "Hakobyan, Aram"]
[Black "Kuzubov, Yuriy"]
[Result "0-1"]
[ECO "D36"]
[WhiteElo "2617"]
[BlackElo "2625"]
[Annotator "ChessBase"]
[PlyCount "96"]
[EventDate "2023.09.18"]
[EventType "k.o."]
[EventCountry "NET"]
[SourceTitle "playchess.com"]
[Source "ChessBase"]
[SourceQuality "1"]
[TimeControl "900+3"]

1. d4 {[%emt 0:00:03]} Nf6 {[%emt 0:00:05]} 2. c4 {[%emt 0:00:02]} e6 {[%emt 0:00:01]} 3. Nc3 {[%emt 0:00:00]} d5 {[%emt 0:00:03]} 4. cxd5 {[%emt 0:00:01]} exd5 {[%emt 0:00:01]} 5. Bg5 {[%emt 0:00:01]} c6 {[%emt 0:00:05]} 6. e3 {[%emt 0:00:00]} Be7 {[%emt 0:00:03]} 7. Bd3 {[%emt 0:00:01]} Nbd7 {[%emt 0:00:03]} 8. Nge2 {[%emt 0:00:02]} O-O {[%emt 0:00:01]} 9. O-O {[%emt 0:00:01]} Nh5 {[%emt 0:00:01]} 10. Bxe7 {[%emt 0:00:02]} Qxe7 {[%emt 0:00:01]} 11. Qc2 {[%emt 0:00:01]} g6 {[%emt 0:00:04]} 12. Rae1 {[%emt 0:00:00]} Ndf6 {[%emt 0:00:22]} 13. Nc1 {[%emt 0:00:16]} b6 {[%emt 0:00:20]} 14. f3 {[%emt 0:00:05]} c5 {[%emt 0:00:07]} 15. Qf2 {[%emt 0:00:42]} Bb7 {[%emt 0:00:35]} 16. g4 {[%emt 0:00:03]} Ng7 {[%emt 0:00:02]} 17. N1e2 {[%emt 0:00:06]} Rfe8 {[%emt 0:00:26]} 18. Ng3 {[%emt 0:00:19]} a6 {[%emt 0:00:12]} 19. h4 {[%emt 0:00:20]} Qd6 {[%emt 0:00:17]} 20. Nce2 {[%emt 0:03:52]} Re7 {[%emt 0:00:03]} 21. h5 {[%emt 0:00:02]} Rae8 {[%emt 0:00:24]} 22. hxg6 {[%emt 0:01:13]} fxg6 {[%emt 0:00:03]} 23. dxc5 {[%emt 0:01:30]} bxc5 {[%emt 0:00:07]} 24. Nf4 {[%emt 0:00:01]} c4 {[%emt 0:00:53]} 25. g5 {[%emt 0:00:02]} Nd7 {[%emt 0:02:31]} 26. Bc2 {[%emt 0:00:02]} Re5 {[%emt 0:00:10]} 27. Ng2 {[%emt 0:00:26]} d4 {[%emt 0:00:29]} 28. f4 {[%emt 0:01:25]} R5e7 {[%emt 0:00:53]} 29. exd4 {[%emt 0:01:16]} Rxe1 {[%emt 0:00:23]} 30. Nxe1 {[%emt 0:01:27]} Ne6 {[%emt 0:00:11]} 31. Ne2 {[%emt 0:00:01]} Nb6 {[%emt 0:01:11]} 32. Ng2 {[%emt 0:00:41]} Bxg2 {[%emt 0:00:57]} 33. Kxg2 {[%emt 0:00:06]} Nd5 {[%emt 0:00:05]} 34. Be4 {[%emt 0:01:02]} Nxg5 {[%emt 0:01:50]} 35. fxg5 {[%emt 0:00:10]} Rxe4 {[%emt 0:00:03]} 36. Qf7+ {[%emt 0:00:42]} Kh8 {[%emt 0:00:03]} 37. Ng3 {[%emt 0:00:00]} Nf4+ {[%emt 0:00:24]} 38. Kf3 {[%emt 0:00:40]} Rxd4 {[%emt 0:01:30]} 39. Ne4 {[%emt 0:00:02]} Rxe4 {[%emt 0:00:41]} 40. Kxe4 {[%emt 0:00:07]} Qd3+ {[%emt 0:00:01]} 41. Ke5 {[%emt 0:00:02]} Qe3+ {[%emt 0:00:07]} 42. Kd6 {[%emt 0:00:04]} Qb6+ {[%emt 0:00:07]} 43. Kd7 {[%emt 0:00:05]} Qb7+ {[%emt 0:00:02]} 44. Ke8 {[%emt 0:00:01]} Qc8+ {[%emt 0:00:03]} 45. Ke7 {[%emt 0:00:02]} Qc7+ {[%emt 0:00:19]} 46. Kf8 {[%emt 0:00:04]} Qd8+ {[%emt 0:00:28]} 47. Qe8 {[%emt 0:00:01]} Qc7 {[%emt 0:00:01]} 48. Re1 {[%emt 0:00:10]} Qg7# {[%emt 0:00:01]} 0-1